fUSD/lending_fUSD_20250420
["ID","MTS","AMOUNT","RATE_DAILY","PERIOD"]
[358452715,1745164252692,-337.24318651,0.00054794,120]
[358452716,1745164252703,-162.75681349,0.00054794,120]
[358452717,1745164252712,-500.0,0.00054794,120]
[358452718,1745164252722,-551.24,0.00054794,120]
[358452719,1745164252732,-246.12695501,0.00055342,120]
[358452720,1745164252742,-500.0,0.00055342,120]
[358452721,1745164252751,-500.0,0.00055342,120]
[358452722,1745164252762,-500.0,0.00055342,120]
[358452723,1745164252772,-500.0,0.00055342,120]
[358452724,1745164252781,-500.0,0.00055342,120]
[358452725,1745164252791,-254.92889142,0.00055342,120]
[358452726,1745164252826,-500.0,0.00054794,2]
[358452727,1745164252835,-245.07110858,0.00055342,120]
[358452728,1745164252844,-310.0085377,0.00055342,120]
[358452729,1745164252853,-423.17035372,0.00055342,120]
[358452730,1745164252867,-123.86964628,0.00055342,120]
[358452731,1745164252876,-500.0,0.00055342,120]
[358452732,1745164252886,-500.0,0.00055342,120]
[358452733,1745164252895,-500.0,0.00055342,120]
[358452734,1745164252905,-500.0,0.00055342,120]
[358452735,1745164252914,-555.13977922,0.00055342,120]
[358452736,1745164252924,-500.0,0.00055342,120]
[358452737,1745164252934,-533.01009346,0.00055342,120]
[358452738,1745164252943,-500.0,0.00055342,120]
[358452739,1745164252952,-500.0,0.00055342,120]
[358452740,1745164252962,-500.0,0.00055342,120]
[358452741,1745164252972,-517.07201778,0.00055342,120]
[358452742,1745164252981,-263.68473349,0.00055342,120]
[358452743,1745164252990,-500.0,0.00055342,120]
[358452744,1745164252999,-500.0,0.00055342,120]
[358452745,1745164253008,-500.0,0.00055342,120]
[358452746,1745164253017,-500.0,0.00055342,120]
[358452747,1745164253027,-500.0,0.00055342,120]
[358452748,1745164253038,-160.91023294,0.00055342,120]
[358452749,1745164253047,-500.0,0.00055342,120]
[358452750,1745164253056,-500.0,0.00055342,120]
[358452751,1745164253069,-500.0,0.00055342,120]
[358452752,1745164253078,-500.0,0.00055342,120]
[358452753,1745164253088,-500.0,0.00055342,120]
[358452754,1745164253097,-381.68802423,0.00055342,120]
[358452755,1745164253106,-500.0,0.00055342,120]
[358452756,1745164253115,-550.61732941,0.00055342,120]
[358452757,1745164253125,-1450.98,0.00055342,120]
[358452758,1745164253134,-500.0,0.00055342,120]
[358452759,1745164253143,-500.0,0.00055342,120]
[358452760,1745164253276,-500.0,0.00055342,120]
[358452761,1745164253285,-500.0,0.00055342,120]
[358452762,1745164253295,-500.0,0.00055342,120]
[358452763,1745164253304,-500.0,0.00055342,120]
[358452764,1745164253314,-500.0,0.00055342,30]
[358452765,1745164253323,-500.0,0.00055342,120]
[358452766,1745164253332,-500.0,0.00055342,120]
[358452767,1745164253341,-500.0,0.00055342,10]
[358452768,1745164253351,-498.13932024,0.00055342,120]
[358452769,1745164253360,-609.58697269,0.00055342,120]
[358452770,1745164253370,-500.0,0.00055342,120]
[358452771,1745164253379,-500.0,0.00055342,120]
[358452772,1745164253389,-525.10496929,0.00055342,120]
[358452773,1745164253398,-500.0,0.00055342,120]
[358452774,1745164253407,-500.0,0.00055342,120]
[358452775,1745164253415,-500.0,0.00055342,120]
[358452776,1745164253424,-549.45595636,0.00055342,120]
[358452777,1745164253434,-500.0,0.00055342,120]
[358452778,1745164253443,-500.0,0.00055342,120]
[358452779,1745164253452,-364.66279463,0.00055342,20]
[358452780,1745164253461,-500.0,0.00055342,120]
[358452781,1745164253470,-500.0,0.00055342,120]
[358452782,1745164253479,-500.0,0.00055342,120]
[358452783,1745164253488,-500.0,0.00055342,120]
[358452784,1745164253498,-500.0,0.00055342,120]
[358452785,1745164253506,-500.0,0.00055342,120]
[358452786,1745164253515,-500.0,0.00055342,120]
[358452787,1745164253526,-563.31855359,0.00055342,120]
[358452788,1745164253535,-500.0,0.00055342,120]
[358452789,1745164253544,-1122.79,0.00055342,120]
[358452790,1745164253553,-500.0,0.00055342,120]
[358452791,1745164253562,-500.0,0.00055342,120]
[358452792,1745164253571,-500.0,0.00055342,120]
[358452793,1745164253579,-500.0,0.00055342,120]
[358452794,1745164253589,-520.60292315,0.00055342,120]
[358452795,1745164253599,-500.0,0.00055342,120]
[358452796,1745164253608,-500.0,0.00055342,120]
[358452797,1745164253617,-500.0,0.00055342,120]
[358452798,1745164253626,-500.0,0.00055342,120]
[358452799,1745164253635,-500.0,0.00055342,120]
[358452800,1745164253644,-500.0,0.00055342,120]
[358452801,1745164253653,-500.0,0.00055342,120]
[358452802,1745164253662,-500.0,0.00055342,120]
[358452803,1745164253671,-500.0,0.00055342,120]
[358452804,1745164253680,-500.0,0.00055342,120]
[358452805,1745164253689,-350.17272856,0.00055342,120]
[358452806,1745164253698,-500.0,0.00055342,120]
[358452807,1745164253707,-500.0,0.00055342,120]
[358452808,1745164253716,-500.0,0.00055342,120]
[358452809,1745164253725,-500.0,0.00055342,120]
[358452810,1745164253734,-500.0,0.00055342,120]
[358452811,1745164253743,-500.0,0.00055342,120]
[358452812,1745164253752,-250.0,0.00055342,120]
[358452813,1745164253761,-500.0,0.00055342,120]
[358452814,1745164253771,-500.0,0.00055342,120]
[358452815,1745164253780,-500.0,0.00055342,120]
[358452816,1745164253790,-500.0,0.00055342,120]
[358452817,1745164253799,-500.0,0.00055342,120]
[358452818,1745164253808,-500.0,0.00055342,120]
[358452819,1745164253817,-500.0,0.00055342,120]
[358452820,1745164253826,-608.33,0.00055342,120]
[358452821,1745164253835,-500.0,0.00055342,120]
[358452822,1745164253844,-500.0,0.00055342,120]
[358452823,1745164253853,-500.0,0.00055342,120]
[358452824,1745164253863,-500.0,0.00055342,120]
[358452825,1745164253873,-500.0,0.00055342,120]
[358452826,1745164253882,-500.0,0.00055342,120]
[358452827,1745164253892,-500.0,0.00055342,120]
[358452828,1745164253902,-505.02,0.00055342,120]
[358452829,1745164253912,-500.0,0.00055342,120]
[358452830,1745164253923,-500.0,0.00055342,120]
[358452831,1745164253933,-500.0,0.00055342,120]
[358452832,1745164253942,-500.0,0.00055342,120]
[358452833,1745164253951,-500.0,0.00055342,120]
[358452834,1745164253960,-1863.27,0.00055342,12]
[358452835,1745164253970,-500.0,0.00055342,120]
[358452836,1745164253980,-1224.26,0.00055342,120]
[358452837,1745164253991,-500.0,0.00055342,120]
[358452838,1745164254000,-500.0,0.00055342,120]
[358452839,1745164254009,-500.0,0.00055342,120]
[358452840,1745164254018,-500.0,0.00055342,120]
[358452841,1745164254028,-500.0,0.00055342,120]
[358452842,1745164254037,-500.0,0.00055342,120]
[358452843,1745164254047,-540.84806422,0.00055342,120]
[358452844,1745164254058,-500.0,0.00055342,120]
[358452845,1745164254072,-500.0,0.00055342,120]
[358452846,1745164254081,-551.78784882,0.00055342,120]
[358452847,1745164254091,-500.0,0.00055342,120]
[358452848,1745164254101,-500.0,0.00055342,120]
[358452849,1745164254111,-298.41869938,0.00055342,120]
[358452850,1745164254120,-751.3,0.00055342,120]
[358452851,1745164254129,-500.0,0.00055342,120]
[358452852,1745164254140,-500.0,0.00055342,120]
[358452853,1745164254149,-500.0,0.00055342,120]
[358452854,1745164254158,-245.949174,0.00055342,120]
[358452855,1745164254167,-245.949174,0.00055342,120]
[358452856,1745164254177,-500.0,0.00055342,120]
[358452857,1745164254186,-245.949174,0.00055342,120]
[358452858,1745164254195,-500.0,0.00055342,120]
[358452859,1745164254205,-245.949174,0.00055342,120]
[358452860,1745164254214,-245.949174,0.00055342,120]
[358452861,1745164254223,-245.949174,0.00055342,120]
[358452862,1745164254233,-500.0,0.00055342,120]
[358452863,1745164254242,-500.0,0.00055342,120]
[358452864,1745164254251,-500.0,0.00055342,120]
[358452865,1745164254260,-500.0,0.00055342,120]
[358452866,1745164254269,-500.0,0.00055342,120]
[358452867,1745164254279,-500.0,0.00055342,120]
[358452868,1745164254288,-500.0,0.00055342,120]
[358452869,1745164254297,-400.15,0.00055342,120]
[358452870,1745164254306,-172.00804377,0.00055342,120]
[358452871,1745164254316,-511.85575692,0.00055342,120]
[358452872,1745164254325,-500.0,0.00055342,120]
[358452873,1745164254334,-500.0,0.00055342,120]
[358452874,1745164254343,-500.0,0.00055342,120]
[358452875,1745164254352,-500.0,0.00055342,30]
[358452876,1745164254361,-500.0,0.00055342,120]
[358452877,1745164254370,-500.0,0.00055342,120]
[358452878,1745164254380,-502.4,0.00055342,120]
[358452879,1745164254389,-500.0,0.00055342,120]
[358452880,1745164254398,-500.0,0.00055342,120]
[358452881,1745164254411,-500.0,0.00055342,120]
[358452882,1745164254421,-500.14958707,0.00055342,120]
[358452883,1745164254430,-500.0,0.00055342,120]
[358452884,1745164254439,-500.0,0.00055342,120]
[358452885,1745164254448,-500.0,0.00055342,120]
[358452886,1745164254457,-500.0,0.00055342,120]
[358452887,1745164254468,-500.0,0.00055342,120]
[358452888,1745164254477,-545.11755135,0.00055342,120]
[358452889,1745164254486,-500.0,0.00055342,120]
[358452890,1745164254496,-500.0,0.00055342,120]
[358452891,1745164254506,-500.0,0.00055342,120]
[358452892,1745164254515,-500.0,0.00055342,120]
[358452893,1745164254526,-500.0,0.00055342,120]
[358452894,1745164254536,-544.92927774,0.00055342,120]
[358452895,1745164254545,-500.0,0.00055342,120]
[358452896,1745164254555,-500.0,0.00055342,120]
[358452897,1745164254564,-586.37547304,0.00055342,120]
[358452898,1745164254574,-176.28131474,0.00055342,8]
[358452899,1745164254591,-972.47868526,0.00055342,8]
[358452900,1745164254600,-500.0,0.00055342,120]
[358452901,1745164254610,-558.52,0.00055342,120]
[358452902,1745164254619,-500.0,0.00055342,120]
[358452903,1745164254629,-500.0,0.00055342,120]
[358452904,1745164254639,-500.0,0.00055342,120]
[358452905,1745164254648,-564.72,0.00055342,120]
[358452906,1745164254658,-500.0,0.00055342,120]
[358452907,1745164254668,-500.0,0.00055342,120]
[358452908,1745164254677,-516.31543249,0.00055342,58]
[358452909,1745164254687,-500.0,0.00055342,120]
[358452910,1745164254696,-500.0,0.00055342,120]
[358452911,1745164254706,-500.0,0.00055342,120]
[358452912,1745164254715,-500.0,0.00055342,120]
[358452913,1745164254724,-500.0,0.00055342,120]
[358452914,1745164254733,-500.0,0.00055342,120]
[358452915,1745164254743,-500.0,0.00055342,120]
[358452916,1745164254751,-429.33791814,0.00055342,120]
[358452917,1745164254761,-500.0,0.00055342,120]
[358452918,1745164254771,-576.41794998,0.00055342,120]
[358452919,1745164254780,-500.0,0.00055342,120]
[358452920,1745164254790,-500.0,0.00055342,120]
[358452921,1745164254799,-500.0,0.00055342,120]
[358452922,1745164254809,-500.0,0.00055342,120]
[358452923,1745164254818,-500.0,0.00055342,120]
[358452924,1745164254827,-500.0,0.00055342,120]
[358452925,1745164254837,-500.0,0.00055342,120]
[358452926,1745164254846,-500.0,0.00055342,120]
[358452927,1745164254855,-500.0,0.00055342,120]
[358452928,1745164254864,-500.0,0.00055342,120]
[358452929,1745164254874,-500.0,0.00055342,120]
[358452930,1745164254883,-233.53,0.00055342,120]
[358452931,1745164254892,-500.0,0.00055342,120]
[358452932,1745164254901,-500.0,0.00055342,120]
[358452933,1745164254910,-500.0,0.00055342,120]
[358452934,1745164254920,-500.0,0.00055342,120]
[358452935,1745164254929,-500.0,0.00055342,120]
[358452936,1745164254938,-500.0,0.00055342,120]
[358452937,1745164254947,-500.0,0.00055342,120]
[358452938,1745164254957,-500.0,0.00055342,120]
[358452939,1745164254966,-500.0,0.00055342,120]
[358452940,1745164254975,-500.0,0.00055342,120]
[358452941,1745164254985,-500.0,0.00055342,120]
[358452942,1745164254994,-500.0,0.00055342,120]
[358452943,1745164255003,-500.0,0.00055342,120]
[358452944,1745164255013,-500.0,0.00055342,120]
[358452945,1745164255025,-500.0,0.00055342,120]
[358452946,1745164255034,-500.0,0.00055342,120]
[358452947,1745164255044,-500.0,0.00055342,120]
[358452948,1745164255053,-500.0,0.00055342,120]
[358452949,1745164255065,-500.0,0.00055342,120]
[358452950,1745164255075,-500.0,0.00055342,120]
[358452951,1745164255085,-615.49300907,0.00055342,120]
[358452952,1745164255094,-500.0,0.00055342,120]
[358452953,1745164255104,-248.07,0.00055342,120]
[358452954,1745164255114,-500.0,0.00055342,120]
[358452955,1745164255124,-500.0,0.00055342,120]
[358452956,1745164255134,-500.0,0.00055342,120]
[358452957,1745164255144,-500.0,0.00055342,120]
[358452958,1745164255154,-500.0,0.00055342,120]
[358452959,1745164255164,-500.0,0.00055342,120]
[358452960,1745164255174,-500.0,0.00055342,120]
[358452961,1745164255184,-1000.0,0.00055342,120]
[358452962,1745164255194,-500.0,0.00055342,120]
[358452963,1745164255204,-500.0,0.00055342,120]
[358452964,1745164255214,-500.0,0.00055342,120]
[358452965,1745164255224,-646.21,0.00055342,120]
[358452966,1745164255234,-557.35612913,0.00055342,120]
[358452967,1745164255244,-561.61586645,0.00055342,120]
[358452968,1745164255254,-562.0,0.00055342,120]
[358452969,1745164255264,-500.0,0.00055342,120]
[358452970,1745164255275,-662.87,0.00055342,120]
[358452971,1745164255285,-528.89337034,0.00055342,120]
[358452972,1745164255294,-12680.84,0.00055342,2]
[358452973,1745164255304,-500.0,0.00055342,120]
[358452974,1745164255313,-561.93196241,0.00055342,120]
[358452975,1745164255323,-500.0,0.00055342,120]
[358452976,1745164255332,-500.0,0.00055342,120]
[358452977,1745164255341,-500.0,0.00055342,120]
[358452978,1745164255350,-500.0,0.00055342,120]
[358452979,1745164255360,-500.0,0.00055342,120]
[358452980,1745164255369,-500.0,0.00055342,120]
[358452981,1745164255378,-500.0,0.00055342,120]
[358452982,1745164255387,-500.0,0.00055342,120]
[358452983,1745164255396,-500.0,0.00055342,120]
[358452984,1745164255406,-524.29932817,0.00055342,120]
[358452985,1745164255416,-500.0,0.00055342,120]
[358452986,1745164255425,-500.0,0.00055342,2]
[358452987,1745164255434,-500.0,0.00055342,120]
[358452988,1745164255444,-500.0,0.00055342,120]
[358452989,1745164255454,-500.0,0.00055342,120]
[358452990,1745164255463,-500.0,0.00055342,120]
[358452991,1745164255473,-500.0,0.00055342,120]
[358452992,1745164255483,-598.40911602,0.00055342,120]
[358452993,1745164255493,-500.0,0.00055342,120]
[358452994,1745164255503,-1088.28,0.00055342,120]
[358452995,1745164255512,-500.0,0.00055342,120]
[358452996,1745164255522,-652.69,0.00055342,120]
[358452997,1745164255531,-218.82865625,0.00055342,120]
[358452998,1745164255541,-500.0,0.00055342,120]
[358452999,1745164255669,-500.0,0.00055342,120]
[358453000,1745164255679,-515.44338576,0.00055342,120]
[358453001,1745164255689,-500.0,0.00055342,120]
[358453002,1745164255699,-516.6,0.00055342,120]
[358453003,1745164255709,-566.86217327,0.00055342,120]
[358453004,1745164255719,-500.0,0.00055342,120]
[358453005,1745164255728,-500.0,0.00055342,120]
[358453006,1745164255737,-500.0,0.00055342,120]
[358453007,1745164255747,-500.0,0.00055342,120]
[358453008,1745164255757,-500.0,0.00055342,120]
[358453009,1745164255766,-500.0,0.00055342,120]
[358453010,1745164255776,-500.0,0.00055342,120]
[358453011,1745164255786,-500.0,0.00055342,120]
[358453012,1745164255795,-500.0,0.00055342,120]
[358453013,1745164255805,-1352.92,0.00055342,2]
[358453014,1745164255814,-507.92,0.00055342,120]
[358453015,1745164255824,-500.0,0.00055342,120]
[358453016,1745164255833,-500.0,0.00055342,120]
[358453017,1745164255843,-500.0,0.00055342,120]
[358453018,1745164255852,-500.0,0.00055342,120]
[358453019,1745164255862,-500.0,0.00055342,120]
[358453020,1745164255872,-448.40519987,0.00055342,120]
[358453021,1745164255882,-500.0,0.00055342,120]
[358453022,1745164255891,-500.0,0.00055342,120]
[358453023,1745164255900,-500.0,0.00055342,120]
[358453024,1745164255910,-638.40587653,0.00055342,120]
[358453025,1745164255919,-500.0,0.00055342,120]
[358453026,1745164255929,-620.43482159,0.00055342,120]
[358453027,1745164255938,-500.0,0.00055342,120]
[358453028,1745164255947,-500.0,0.00055342,120]
[358453029,1745164255957,-500.0,0.00055342,120]
[358453030,1745164255966,-500.0,0.00055342,120]
[358453031,1745164255975,-500.0,0.00055342,120]
[358453032,1745164255985,-500.0,0.00055342,120]
[358453033,1745164255994,-500.0,0.00055342,120]
[358453034,1745164256003,-500.0,0.00055342,120]
[358453035,1745164256012,-500.0,0.00055342,120]
[358453036,1745164256022,-621.86,0.00055342,120]
[358453037,1745164256031,-500.0,0.00055342,120]
[358453038,1745164256042,-500.0,0.00055342,120]
[358453039,1745164256051,-500.0,0.00055342,120]
[358453040,1745164256065,-500.0,0.00055342,118]
[358453041,1745164256074,-500.0,0.00055342,120]
[358453042,1745164256084,-500.0,0.00055342,120]
[358453043,1745164256093,-500.0,0.00055342,2]
[358453044,1745164256103,-520.72,0.00055342,120]
[358453045,1745164256111,-500.0,0.00055342,120]
[358453046,1745164256121,-500.0,0.00055342,120]
[358453047,1745164256130,-500.0,0.00055342,120]
[358453048,1745164256139,-500.0,0.00055342,3]
[358453049,1745164256148,-502.50959724,0.00055342,120]
[358453050,1745164256158,-499.88507154,0.00055342,2]
[358453051,1745164256167,-500.0,0.00055342,120]
[358453052,1745164256177,-500.0,0.00055342,120]
[358453053,1745164256186,-516.31183271,0.00055342,120]
[358453054,1745164256195,-500.0,0.00055342,120]
[358453055,1745164256204,-500.0,0.00055373,14]
[358453056,1745164256213,-3229.83902548,0.00055375,15]
[358453057,1745164256222,-500.0,0.00055383,120]
[358453058,1745164256232,-4454.21525812,0.00055384,15]
[358453059,1745164256242,-500.0,0.00055417,120]
[358453060,1745164256251,-1996.0402111,0.00055488,4]
[358453061,1745164256260,-18643.3497448,0.00055527,4]
[358453062,1745164256269,-593.31,0.000556,60]
[358453063,1745164256280,-200.0,0.000557,103]
[358453064,1745164256289,-200.0,0.000557,103]
[358453065,1745164256299,-200.0,0.000557,103]
[358453066,1745164256308,-198.84852389,0.0005579,62]
[358453067,1745164256317,-37286.6994897,0.0005587,4]
[358453068,1745164256327,-11976.2412666,0.0005587,4]
[358453069,1745164256336,-245.949174,0.0005588,120]
[358453070,1745164256345,-245.949166,0.0005588,120]
[358453071,1745164256355,-500.0,0.0005588,2]
[358453072,1745164256364,-1996.0402111,0.0005588,4]
[358453073,1745164256374,-500.0,0.00055889,34]
[358453074,1745164256384,-500.0,0.00055889,2]
[358453075,1745164256393,-500.0,0.00055889,120]
[358453076,1745164256403,-500.0,0.00055889,60]
[358453077,1745164256412,-513.18204701,0.0005589,2]
[358453078,1745164256422,-500.0,0.0005589,120]
[358453079,1745164256431,-265.98267933,0.0005589,120]
[358453080,1745164256762,-500.0,0.00054794,120]
[358453081,1745164256772,-500.0,0.00054794,2]
[358453082,1745164256782,-500.0,0.00054794,120]
[358453083,1745164256792,-234.01732067,0.0005589,120]
[358453084,1745164256802,-497.87511952,0.0005589,120]
[358453085,1745164256811,-500.0,0.0005589,120]
[358453086,1745164256820,-500.0,0.0005589,120]
[358453087,1745164256830,-516.2418369,0.0005589,120]
[358453088,1745164256839,-500.0,0.0005589,120]
[358453089,1745164256848,-500.0,0.0005589,120]
[358453090,1745164256857,-500.0,0.0005589,120]
[358453091,1745164256866,-500.0,0.0005589,120]
[358453092,1745164256875,-500.0,0.0005589,120]
[358453093,1745164256885,-500.0,0.0005589,120]
[358453094,1745164256894,-500.0,0.0005589,120]
[358453095,1745164256903,-500.0,0.0005589,120]
[358453096,1745164256913,-500.0,0.0005589,120]
[358453097,1745164256922,-500.0,0.0005589,120]
[358453098,1745164256931,-526.44038205,0.0005589,120]
[358453099,1745164256941,-518.09843914,0.0005589,120]
[358453100,1745164256950,-500.0,0.0005589,120]
[358453101,1745164256960,-500.0,0.0005589,120]
[358453102,1745164256971,-521.22475303,0.0005589,120]
[358453103,1745164256980,-500.0,0.0005589,120]
[358453104,1745164256992,-500.0,0.0005589,120]
[358453105,1745164257003,-500.0,0.0005589,120]
[358453106,1745164257013,-1958.05,0.0005589,120]
[358453107,1745164257023,-500.0,0.0005589,120]
[358453108,1745164257033,-500.0,0.0005589,120]
[358453109,1745164257042,-500.0,0.0005589,120]
[358453110,1745164257051,-500.0,0.0005589,120]
[358453111,1745164257063,-139.25531146,0.0005589,120]
[358453112,1745164258964,-500.0,0.00054794,120]
[358453113,1745164258973,-113.29068313,0.0005589,120]
[358453114,1745164258990,-269.78,0.00054794,120]
[358453122,1745165431539,-151.0,0.00039791,2]
[358453123,1745165431548,-151.0,0.00039791,2]
[358453124,1745165431557,-151.0,0.00039791,2]
[358453125,1745165431566,-151.0,0.00039792,2]
[358453126,1745165431576,-151.0,0.00039792,2]
[358453127,1745165431585,-151.0,0.00039851,2]
[358453128,1745165431594,-151.0,0.00039923,2]
[358453129,1745165431603,-152.16,0.00048,42]
[358453130,1745165431612,-152.16,0.00048,42]
[358453131,1745165431621,-152.16,0.00048,42]
[358453132,1745165431630,-152.16,0.00048,42]
[358453133,1745165431639,-152.16,0.00048,42]
[358453134,1745165431648,-152.16,0.00048,42]
[358453135,1745165431658,-152.16,0.00048,42]
[358453136,1745165431667,-152.16,0.00048,42]
[358453137,1745165431676,-152.16,0.00048,42]
[358453138,1745165431685,-152.16,0.00048,42]
[358453139,1745165431694,-152.16,0.00048,42]
[358453140,1745165431703,-152.16,0.00048,42]
[358453141,1745165431711,-201.94,0.000484,2]
[358453142,1745165431721,-152.0,0.00049419,3]
[358453143,1745165431730,-164.65014398,0.0005,14]
[358453144,1745165431743,-1000.0,0.00050341,2]
[358453145,1745165431752,-1000.0,0.00050341,2]
[358453146,1745165431762,-1000.0,0.00050341,2]
[358453147,1745165431770,-1000.0,0.00050341,2]
[358453148,1745165431779,-153.29,0.00050898,120]
[358453149,1745165431788,-379.05,0.00051592,2]
[358453150,1745165431798,-152.0,0.00052338,4]
[358453151,1745165431807,-951.84,0.00053,2]
[358453152,1745165431816,-216.0,0.00053,120]
[358453153,1745165431826,-227.21,0.00053033,2]
[358453154,1745165431835,-150.0,0.00053261,7]
[358453155,1745165431844,-494.25,0.00053261,2]
[358453157,1745165431853,-168.95,0.00053308,120]
[358453159,1745165431862,-1000.0,0.00053318,120]
[358453161,1745165431870,-17384.29533518,0.00053467,2]
[358453162,1745165431879,-152.16,0.000536,54]
[358453163,1745165431888,-152.16,0.000536,54]
[358453164,1745165431897,-152.16,0.000536,54]
[358453166,1745165431906,-152.16,0.000536,54]
[358453168,1745165431916,-152.16,0.000536,54]
[358453170,1745165431924,-152.16,0.000536,54]
[358453172,1745165431934,-152.16,0.000536,54]
[358453174,1745165431943,-152.16,0.000536,54]
[358453176,1745165431952,-152.16,0.000536,54]
[358453178,1745165431960,-152.16,0.000536,54]
[358453180,1745165431969,-152.16,0.000536,54]
[358453182,1745165431978,-152.16,0.000536,54]
[358453184,1745165431987,-152.16,0.000536,54]
[358453185,1745165431996,-152.16,0.000536,54]
[358453187,1745165432006,-152.16,0.000536,54]
[358453189,1745165432015,-152.16,0.000536,54]
[358453191,1745165432023,-152.16,0.000536,54]
[358453193,1745165432032,-152.16,0.000536,54]
[358453195,1745165432041,-152.16,0.000536,54]
[358453197,1745165432049,-152.16,0.000536,54]
[358453199,1745165432058,-152.16,0.000536,54]
[358453201,1745165432067,-152.16,0.000536,54]
[358453203,1745165432076,-152.16,0.000536,54]
[358453205,1745165432086,-152.16,0.000536,54]
[358453207,1745165432095,-216.0,0.00053699,120]
[358453209,1745165432103,-150.0,0.0005374,120]
[358453211,1745165432112,-379.05,0.00053856,2]
[358453213,1745165432121,-564.10397661,0.0005428,2]
[358453215,1745165432130,-2000.0,0.000545,2]
[358453217,1745165432139,-2583.87122042,0.00054694,15]
[358453219,1745165432147,-5067.5967264,0.000547,31]
[358453221,1745165432156,-1992.0,0.000547,120]
[358453223,1745165432166,-594.24496663,0.00054784,60]
[358453225,1745165432174,-176.215,0.00054784,103]
[358453227,1745165432183,-5223.55056778,0.00054784,30]
[358453229,1745165432192,-500.0,0.00054793,120]
[358453231,1745165432201,-229.24055882,0.00054793,120]
[358453233,1745165432211,-500.0,0.00054793,120]
[358453235,1745165432220,-624.07976107,0.00054793,120]
[358453237,1745165432229,-500.0,0.00054793,120]
[358453239,1745165432238,-500.0,0.00054793,120]
[358453241,1745165432246,-562.50519431,0.00054793,120]
[358453243,1745165432255,-500.0,0.00054793,120]
[358453245,1745165432264,-500.0,0.00054793,120]
[358453247,1745165432273,-500.0,0.00054793,120]
[358453249,1745165432282,-500.0,0.00054793,120]
[358453251,1745165432291,-500.0,0.00054793,120]
[358453253,1745165432300,-500.0,0.00054793,120]
[358453255,1745165432309,-500.0,0.00054793,120]
[358453257,1745165432317,-311.00916203,0.00054793,120]
[358453259,1745165432326,-600.0,0.00054793,120]
[358453261,1745165432335,-500.0,0.00054794,120]
[358453262,1745165432344,-500.0,0.00054794,120]
[358453264,1745165432352,-376.68739669,0.00054794,120]
[358453267,1745165432365,-123.31260331,0.00054794,120]
[358453269,1745165432373,-500.0,0.00054794,120]
[358453271,1745165432383,-500.0,0.00054794,120]
[358453273,1745165432391,-500.0,0.00054794,120]
[358453275,1745165432401,-500.0,0.00054794,120]
[358453276,1745165432410,-500.0,0.00054794,120]
[358453278,1745165432419,-500.0,0.00054794,120]
[358453280,1745165432429,-500.0,0.00054794,120]
[358453282,1745165432439,-163.71104783,0.00054794,120]